fUSD/lending_fUSD_20240729
["ID","MTS","AMOUNT","RATE_DAILY","PERIOD"]
[333503314,1722216633002,-2139.85,9.521e-05,2]
[333503315,1722216633011,-10000.0,9.521e-05,2]
[333503316,1722216633020,-213.18,9.531e-05,2]
[333503317,1722216633029,-320.0,9.541e-05,2]
[333503318,1722216633038,-99.80206671,9.552e-05,2]
[333503319,1722216633050,-200.19793329,9.552e-05,2]
[333503320,1722216633059,-225.63,9.558e-05,2]
[333503321,1722216633068,-156.97,9.798e-05,2]
[333503322,1722216633077,-156.97,9.801e-05,2]
[333503323,1722216633087,-156.97,9.803e-05,2]
[333503324,1722216633096,-156.97,9.806e-05,2]
[333503325,1722216633106,-645.03,9.806e-05,2]
[333503326,1722216633119,-156.97,9.809e-05,2]
[333503327,1722216633129,-156.97,9.811e-05,2]
[333503328,1722216633139,-156.97,9.814e-05,2]
[333503329,1722216633149,-299.99,9.814e-05,2]
[333503330,1722216633158,-156.97,9.816e-05,2]
[333503331,1722216633168,-499.99,9.816e-05,2]
[333503332,1722216633178,-523.03833686,9.817e-05,2]
[333503333,1722216633190,-156.96166314,9.817e-05,2]
[333503334,1722216633199,-156.97,9.819e-05,2]
[333503335,1722216633209,-156.97,9.821e-05,2]
[333503336,1722216633218,-11.08688164,9.824e-05,2]
[333503337,1722216633243,-145.88311836,9.824e-05,2]
[333503338,1722216633252,-156.97,9.827e-05,2]
[333503339,1722216633261,-156.97,9.829e-05,2]
[333503340,1722216633271,-156.97,9.832e-05,2]
[333503341,1722216633280,-156.97,9.834e-05,2]
[333503342,1722216633289,-156.97,9.837e-05,2]
[333503343,1722216633298,-156.97,9.84e-05,2]
[333503344,1722216633308,-150.0,9.84e-05,2]
[333503345,1722216633317,-156.97,9.842e-05,2]
[333503346,1722216633327,-156.97,9.845e-05,2]
[333503347,1722216633336,-156.97,9.847e-05,2]
[333503348,1722216633346,-151.55477496,9.888e-05,2]
[333503349,1722216633355,-425.69,0.00010192,2]
[333503350,1722216633369,-150.0,0.00010192,2]
[333503351,1722216633378,-150.52,0.00010192,2]
[333503352,1722216633388,-355.96,0.00010192,2]
[333503353,1722216633397,-150.0,0.00010192,2]
[333503354,1722216633407,-425.69,0.00010192,2]
[333503355,1722216633420,-150.0,0.00010192,2]
[333503356,1722216633429,-355.96,0.00010192,2]
[333503357,1722216633439,-530.14,0.00010192,2]
[333503358,1722216633448,-530.14,0.00010192,2]
[333503359,1722216633457,-425.69,0.00010192,2]
[333503360,1722216633467,-355.96,0.00010192,2]
[333503361,1722216633476,-150.0,0.00010192,2]
[333503362,1722216633485,-150.0,0.00010192,2]
[333503363,1722216633494,-150.0,0.00010192,2]
[333503364,1722216633504,-150.0,0.00010192,2]
[333503365,1722216633513,-355.96,0.00010192,2]
[333503366,1722216633523,-150.0,0.00010192,2]
[333503367,1722216633532,-530.14,0.00010192,2]
[333503368,1722216633542,-144.96496289,0.00010192,2]
[333503369,1722216633553,-280.72503711,0.00010192,2]
[333503370,1722216633564,-425.69,0.00010192,2]
[333503371,1722216633574,-150.0,0.00010192,2]
[333503372,1722216633584,-530.14,0.00010192,2]
[333503373,1722216633593,-355.36,0.00010192,2]
[333503374,1722216633602,-150.0,0.00010192,2]
[333503375,1722216633616,-150.0,0.00010192,2]
[333503376,1722216633626,-156.75813598,0.000102,2]
[333503377,1722216633635,-1667.25,0.00010341,2]
[333503378,1722216633645,-531.30939888,0.00010348,2]
[333503379,1722216633654,-382.55,0.00010452,2]
[333503380,1722216633663,-889.89010437,0.00010497,2]
[333503381,1722216633675,-4682.58301081,0.00010497,2]
[333503382,1722216633695,-679.71,0.00010497,2]
[333503383,1722216637825,-396.10926099,0.00010497,2]
[333503384,1722216637837,-658.17930431,0.00010497,2]
[333503385,1722216637848,-2939.34329651,0.00010497,2]
[333503386,1722216637861,-4869.05284405,0.00010497,2]
[333503387,1722216637955,-404.64145571,0.00010497,2]
[333503388,1722216637966,-688.35,0.00010497,2]
[333503389,1722216637977,-4186.27582778,0.00010497,2]
[333503513,1722216639808,-1250.0,0.0001,2]
[333503514,1722216639818,-24880.19097742,0.00010497,2]
[333503515,1722216639827,-420.0,0.00010507,2]
[333503516,1722216639836,-150.0,0.00010683,2]
[333503517,1722216639846,-150.0,0.00010686,2]
[333503518,1722216639855,-150.0,0.00010689,2]
[333503519,1722216639866,-150.0,0.0001069,2]
[333503520,1722216639875,-1292.91,0.00010692,2]
[333503521,1722216639886,-150.0,0.00010692,2]
[333503522,1722216639895,-150.0,0.00010696,2]
[333503523,1722216639907,-150.0,0.00010697,2]
[333503524,1722216639917,-150.0,0.00010699,2]
[333503525,1722216639926,-150.0,0.00010703,2]
[333503526,1722216639935,-150.0,0.00010705,2]
[333503527,1722216640134,-150.0,0.00010711,2]
[333503528,1722216640146,-150.0,0.00010718,2]
[333503529,1722216640155,-150.0,0.00010721,2]
[333503530,1722216640165,-150.0,0.00010728,2]
[333503531,1722216640174,-305.38255821,0.00010729,2]
[333503532,1722216640184,-150.0,0.00010731,2]
[333503533,1722216640193,-150.0,0.00010731,2]
[333503534,1722216640203,-304.80832522,0.00010731,2]
[333503535,1722216640212,-150.0,0.00010731,2]
[333503536,1722216640221,-150.0,0.00010731,2]
[333503537,1722216640231,-150.0,0.00010732,2]
[333503538,1722216640240,-1500.0,0.00010732,2]
[333503539,1722216640250,-320.0,0.00010734,2]
[333503540,1722216640259,-150.0,0.00010734,2]
[333503541,1722216640270,-150.0,0.00010743,2]
[333503542,1722216640279,-150.0,0.00010743,2]
[333503543,1722216640289,-300.0,0.00010744,2]
[333503544,1722216640298,-301.40267986,0.00010746,2]
[333503545,1722216640307,-1500.0,0.00010746,2]
[333503546,1722216640317,-150.0,0.00010747,2]
[333503547,1722216640326,-150.0,0.00010749,2]
[333503548,1722216640335,-1500.0,0.00010749,2]
[333503549,1722216640344,-150.0,0.00010752,2]
[333503551,1722216640354,-150.0,0.00010752,2]
[333503553,1722216640366,-150.0,0.00010753,2]
[333503555,1722216640375,-150.0,0.00010754,2]
[333503557,1722216640385,-1500.0,0.00010754,2]
[333503559,1722216640394,-150.0,0.00010755,2]
[333503561,1722216640405,-150.0,0.00010757,2]
[333503563,1722216640415,-150.0,0.00010759,2]
[333503565,1722216640424,-150.0,0.0001076,2]
[333503567,1722216640433,-150.0,0.0001076,2]
[333503569,1722216640443,-150.0,0.00010762,2]
[333503571,1722216640456,-150.0,0.00010763,2]
[333503573,1722216640466,-150.0,0.00010765,2]
[333503575,1722216640475,-150.0,0.00010771,2]
[333503577,1722216640486,-150.0,0.00010774,2]
[333503579,1722216640496,-150.0,0.00010777,2]
[333503581,1722216640506,-150.0,0.00010778,2]
[333503583,1722216640515,-300.0,0.00010779,2]
[333503584,1722216640526,-1091.99792655,0.0001078,2]
[333503586,1722216640537,-150.0,0.0001078,2]
[333503588,1722216640547,-150.0,0.00010782,2]
[333503590,1722216640556,-150.0,0.00010783,2]
[333503592,1722216640566,-150.0,0.00010783,2]
[333503594,1722216640575,-150.0,0.00010784,2]
[333503596,1722216640585,-150.0,0.00010785,2]
[333503598,1722216640594,-150.0,0.00010786,2]
[333503600,1722216640604,-150.0,0.00010786,2]
[333503602,1722216640614,-1500.0,0.00010786,2]
[333503604,1722216640623,-150.0,0.00010788,2]
[333503606,1722216640633,-539.6958,0.00010789,2]
[333503608,1722216640642,-2389.4867,0.0001079,2]
[333503610,1722216640652,-259.519,0.0001079,2]
[333503612,1722216640662,-150.0,0.00010791,2]
[333503614,1722216640671,-150.0,0.00010792,2]
[333503616,1722216640680,-300.0,0.00010793,2]
[333503618,1722216640690,-150.0,0.00010795,2]
[333503620,1722216640699,-150.0,0.00010795,2]
[333503622,1722216640708,-150.0,0.00010796,2]
[333503624,1722216640718,-177.5368,0.000108,2]
[333503626,1722216640727,-150.0,0.00010802,2]
[333503628,1722216640736,-150.0,0.00010803,2]
[333503630,1722216640745,-151.37357015,0.00010803,2]
[333503632,1722216640755,-150.0,0.00010805,2]
[333503634,1722216640765,-300.0,0.00010808,2]
[333503636,1722216640774,-150.0,0.0001081,2]
[333503638,1722216640784,-150.0,0.00010812,2]
[333503640,1722216640794,-150.0,0.00010812,2]
[333503642,1722216640803,-150.0,0.00010813,2]
[333503644,1722216640813,-150.0,0.00010816,2]
[333503646,1722216640823,-300.0,0.00010817,2]
[333503648,1722216640833,-150.0,0.00010819,2]
[333503650,1722216640842,-150.0,0.00010819,2]
[333503652,1722216640852,-150.0,0.00010819,2]
[333503654,1722216640865,-150.0,0.0001082,2]
[333503656,1722216640875,-150.0,0.00010823,2]
[333503658,1722216640884,-150.0,0.00010825,2]
[333503659,1722216640893,-150.0,0.00010825,2]
[333503661,1722216640902,-150.0,0.00010825,2]
[333503663,1722216640912,-150.0,0.00010827,2]
[333503664,1722216640922,-150.0,0.00010827,2]
[333503666,1722216640931,-150.0,0.0001083,2]
[333503668,1722216640941,-1500.0,0.00010832,2]
[333503670,1722216640950,-150.0,0.00010833,2]
[333503672,1722216640960,-300.0,0.00010833,2]
[333503674,1722216640970,-150.0,0.00010837,2]
[333503676,1722216640979,-150.0,0.00010838,2]
[333503678,1722216640989,-1500.0,0.00010838,2]
[333503680,1722216640999,-150.0,0.00010841,2]
[333503681,1722216641008,-193.22919597,0.00010842,2]
[333503682,1722216641017,-150.0,0.00010845,2]
[333503683,1722216641027,-150.0,0.00010848,2]
[333503684,1722216641036,-150.0,0.00010848,2]
[333503685,1722216641045,-150.0,0.00010851,2]
[333503686,1722216641054,-150.0,0.00010854,2]
[333503687,1722216641064,-150.0,0.00010854,2]
[333503688,1722216641074,-150.0,0.00010855,2]
[333503689,1722216641083,-1496.56344227,0.00010855,2]
[333503690,1722216641092,-150.0,0.00010856,2]
[333503691,1722216641101,-150.0,0.00010856,2]
[333503692,1722216641112,-150.0,0.0001086,2]
[333503693,1722216641121,-300.0,0.0001086,2]
[333503694,1722216641130,-150.0,0.00010861,2]
[333503695,1722216641139,-396.88083395,0.00010861,2]
[333503696,1722216641149,-150.0,0.00010862,2]
[333503697,1722216641158,-150.0,0.00010862,2]
[333503698,1722216641168,-300.0,0.00010862,2]
[333503699,1722216641177,-150.0,0.00010862,2]
[333503700,1722216641186,-150.0,0.00010864,2]
[333503701,1722216641196,-396.88083395,0.00010864,2]
[333503702,1722216641206,-150.0,0.00010865,2]
[333503703,1722216641215,-150.0,0.00010866,2]
[333503704,1722216641224,-150.0,0.00010868,2]
[333503705,1722216641234,-150.0,0.0001087,2]
[333503706,1722216641243,-150.0,0.00010875,2]
[333503707,1722216641253,-300.0,0.00010877,2]
[333503708,1722216641262,-150.0,0.00010877,2]
[333503709,1722216641271,-150.0,0.00010877,2]
[333503710,1722216641280,-31660.88940483,0.0001088,2]
[333503711,1722216641290,-150.0,0.00010881,2]
[333503712,1722216641299,-150.0,0.00010881,2]
[333503713,1722216641308,-728.59954485,0.00010883,2]
[333503714,1722216641317,-150.0,0.00010883,2]
[333503715,1722216641327,-150.0,0.00010884,2]
[333503716,1722216641336,-150.0,0.00010885,2]
[333503717,1722216641345,-396.88083395,0.00010886,2]
[333503718,1722216641354,-150.0,0.00010887,2]
[333503719,1722216641364,-300.0,0.00010887,2]
[333503720,1722216641373,-150.0,0.00010889,2]
[333503721,1722216641382,-150.0,0.00010889,2]
[333503722,1722216641391,-300.0,0.00010889,2]
[333503723,1722216641400,-29386.18897131,0.0001089,2]
[333503724,1722216641409,-37966.50897303,0.0001089,2]
[333503725,1722216641420,-4070.7604,0.0001089,2]
[333503726,1722216641431,-300.0,0.00010893,2]
[333503727,1722216641440,-150.0,0.00010895,2]
[333503728,1722216641451,-150.0,0.00010897,2]
[333503729,1722216641462,-1500.0,0.00010898,2]
[333503730,1722216641472,-1349.633,0.00010899,2]
[333503731,1722216641481,-1204.552,0.00010899,2]
[333503732,1722216641490,-175.726,0.00010899,2]
[333503733,1722216641500,-16501.68,0.00010899,2]
[333503734,1722216641510,-1581.0,0.00010899,2]
[333503735,1722216641520,-717.56404311,0.000109,2]
[333503736,1722216641533,-298.57312534,0.000109,2]
[333503737,1722216641545,-1028.443,0.000109,2]
[333503738,1722216641556,-736.10038563,0.000109,2]
[333503739,1722216641582,-1632.49639675,0.000109,2]
[333503740,1722216641593,-4786.36046934,0.000109,2]
[333503741,1722216641604,-1301.90749695,0.000109,2]
[333503742,1722216641617,-3343.97506869,0.000109,2]
[333503743,1722216641639,-640.93026577,0.000109,2]
[333503744,1722216641650,-2817.88409619,0.000109,2]
[333503745,1722216641662,-2621.60252239,0.000109,2]
[333503746,1722216641673,-546.4121415,0.000109,2]
[333503747,1722216641723,-1765.5,0.000109,2]
[333503748,1722216641734,-11787.26595966,0.000109,2]
[333503749,1722216641745,-258.26659757,0.000109,2]
[333503750,1722216641756,-303.98943111,0.000109,2]
[333503751,1722216641766,-2131.39824688,0.000109,2]
[333503752,1722216641777,-1922.42255462,0.000109,2]
[333503756,1722216642798,-424.33789475,0.000109,2]
[333503757,1722216642956,-1165.43384323,0.000109,2]
[333503758,1722216642968,-1057.44666052,0.000109,2]
[333503759,1722216642977,-424.49777968,0.000109,2]
[333503760,1722216643088,-701.11,0.000109,2]
[333503761,1722216643244,-284.88492032,0.000109,2]
[333503762,1722216643254,-300.0,0.00010902,2]
[333503763,1722216643263,-150.0,0.00010905,2]
[333503764,1722216643273,-150.0,0.00010909,2]
[333503765,1722216643282,-150.0,0.00010909,2]
[333503766,1722216643292,-150.0,0.0001091,2]
[333503767,1722216643301,-150.0,0.00010912,2]
[333503768,1722216643311,-1500.0,0.00010913,2]
[333503769,1722216643320,-150.0,0.00010914,2]
[333503770,1722216643329,-237.04930145,0.00010917,2]
[333503771,1722216643339,-150.0,0.00010917,2]
[333503772,1722216643348,-150.0,0.00010924,2]
[333503773,1722216643357,-152.82812024,0.00010926,2]
[333503774,1722216643368,-150.0,0.00010927,2]
[333503775,1722216643378,-150.0,0.00010928,2]
[333503776,1722216643387,-150.0,0.00010929,2]
[333503777,1722216643396,-150.0,0.00010935,2]
[333503778,1722216643406,-150.0,0.00010936,2]
[333503779,1722216643415,-150.0,0.00010938,2]
[333503780,1722216643425,-150.0,0.00010939,2]
[333503781,1722216643434,-150.0,0.00010944,2]
[333503782,1722216643443,-300.0,0.00010945,2]
[333503783,1722216643453,-150.0,0.00010948,2]
[333503784,1722216643463,-428.96351607,0.00010951,2]
[333503789,1722216645877,-254.08592998,0.00010951,2]
[333503790,1722216645888,-816.95055395,0.00010951,2]
[333503791,1722216645898,-150.0,0.00010954,2]
[333503792,1722216645907,-150.0,0.00010954,2]
[333503793,1722216645916,-150.0,0.00010954,2]
[333503794,1722216645926,-150.0,0.00010955,2]
[333503795,1722216645935,-500.0,0.00010958,2]
[333503796,1722216645944,-579.83,0.00010958,2]
[333503797,1722216645953,-413.77755252,0.00010958,2]
[333503798,1722216645964,-86.22244748,0.00010958,2]
[333503799,1722216645973,-500.0,0.00010958,2]
[333503800,1722216645983,-303.97755252,0.00010958,2]
[333503801,1722216645994,-198.66337465,0.00010958,2]
[333503802,1722216646003,-500.0,0.00010958,2]
[333503803,1722216646013,-214.920463,0.00010958,2]
[333503804,1722216646022,-500.0,0.00010958,2]
[333503805,1722216646031,-500.0,0.00010958,2]
[333503806,1722216646040,-509.82,0.00010958,2]
[333503807,1722216646049,-120.60941923,0.00010958,2]
[333503808,1722216646060,-379.39058077,0.00010958,2]
[333503809,1722216646070,-278.11684104,0.00010958,2]
[333503810,1722216646090,-221.88315896,0.00010958,2]
[333503811,1722216646099,-489.67726772,0.00010958,2]
[333503812,1722216646109,-500.0,0.00010958,2]
[333503813,1722216646120,-586.03,0.00010958,2]
[333503814,1722216646129,-500.0,0.00010958,2]
[333503815,1722216646140,-58.84003249,0.00010958,2]
[333503816,1722216646152,-441.15996751,0.00010958,2]
[333503817,1722216646161,-641.93238606,0.00010958,2]
[333503818,1722216646170,-500.0,0.00010958,2]
[333503819,1722216646179,-500.0,0.00010958,2]
[333503820,1722216646189,-231.24121516,0.00010958,2]
[333503821,1722216646200,-268.75878484,0.00010958,2]
[333503822,1722216646209,-500.0,0.00010958,2]
[333503823,1722216646219,-126.97415137,0.00010958,2]
[333503824,1722216646231,-319.31715993,0.00010958,2]
[333503826,1722216646247,-53.7086887,0.00010958,2]
[333503827,1722216646257,-500.0,0.00010958,2]
[333503828,1722216646267,-500.0,0.00010958,2]
[333503829,1722216646276,-500.0,0.00010958,2]
[333503830,1722216646285,-500.0,0.00010958,2]
[333503831,1722216646294,-500.0,0.00010958,2]
[333503832,1722216646303,-500.0,0.00010958,2]
[333503833,1722216646313,-500.0,0.00010958,2]
[333503834,1722216646322,-500.0,0.00010958,2]
[333503835,1722216646332,-454.59577824,0.00010958,2]
[333503836,1722216646341,-500.0,0.00010958,2]
[333503837,1722216646350,-500.0,0.00010958,2]
[333503838,1722216646360,-357.14,0.00010958,2]
[333503839,1722216646371,-500.0,0.00010958,2]
[333503840,1722216646380,-403.04,0.00010958,2]
[333503841,1722216646390,-500.0,0.00010958,2]
[333503842,1722216646399,-500.0,0.00010958,2]
[333503843,1722216646408,-500.0,0.00010958,2]
[333503844,1722216646417,-500.0,0.00010958,2]
[333503845,1722216646426,-346.30057442,0.00010958,2]
[333503846,1722216917519,172.43,0.0001337,30]
[333503848,1722216960545,17364.58,0.00021,120]
[333503878,1722217831907,-372.66,8.219e-05,2]
[333503880,1722217831916,-285.79805258,9.653e-05,2]
[333503884,1722217832103,-818.82444517,9.653e-05,2]
[333503885,1722217832114,-757.13168339,9.653e-05,2]
[333503886,1722217832302,-2240.21581886,9.653e-05,2]
[333503887,1722217832312,-250.0,9.847e-05,2]
[333503888,1722217832321,-1000.0,9.878e-05,2]
[333503889,1722217832331,-600.0,9.9e-05,3]
[333503890,1722217832340,-150.0,9.973e-05,2]
[333503891,1722217832352,-300.0,9.999e-05,2]
[333503892,1722217832361,-150.0,9.999e-05,2]
[333503893,1722217832370,-300.0,9.999e-05,2]
[333503894,1722217832380,-2056.35418114,0.0001,3]
[333503895,1722217832391,-3137.05,0.0001,3]
[333503896,1722217832402,-2083.85,0.0001,3]
[333503897,1722217832413,-279.69657276,0.0001,3]
[333503898,1722217832424,-335.92939992,0.0001,3]
[333503899,1722217832435,-348.89010204,0.0001,3]
[333503932,1722217839916,-899.49016973,0.0001,3]
[333503936,1722217840137,-901.27196987,0.0001,3]
[333503937,1722217840151,-452.36781071,0.0001,3]
[333503938,1722217840162,-32423.0,0.0001,3]
[333503939,1722217840174,-410.19142791,0.0001,3]
[333503940,1722217840185,-1118.414523,0.0001,3]
[333503941,1722217840197,-3001.15367407,0.0001,3]
[333503942,1722217840208,-1446.97174151,0.0001,3]
[333503943,1722217840219,-480.599973,0.0001,3]
[333503944,1722217840230,-265.03427451,0.0001,3]
[333503945,1722217840241,-646.5511792,0.0001,3]
[333503946,1722217840252,-328.56,0.0001,3]
[333503947,1722217840264,-284.52359772,0.0001,3]
[333503948,1722217840275,-2000.0,0.0001,3]
[333503949,1722217840286,-2302.89454731,0.0001,3]
[333503950,1722217840337,-313.5436304,0.0001,3]
[333503952,1722217840348,-9030.00884852,0.0001,3]
[333503954,1722217840360,-1382.64326385,0.0001,3]
[333503957,1722217840371,-1299.68,0.0001,3]
[333503959,1722217840383,-6457.2,0.0001,3]
[333503974,1722217840532,-6461.44458838,0.0001,3]
[333503976,1722217840543,-1625.64412788,0.0001,3]
[333503977,1722217840554,-1618.10000002,0.0001,3]
[333503980,1722217840564,-3255.0,0.0001,3]
[333503982,1722217840575,-814.74037197,0.0001,3]
[333504055,1722217843047,-6529.97215703,0.0001,3]
[333504059,1722217843059,-500.0,0.0001,3]
[333504067,1722217843230,-68892.22786755,0.0001,3]
[333504068,1722217843241,-1300.0,0.0001,3]
[333504069,1722217843250,-2000.0,0.000101,3]
[333504076,1722217843460,-151.38,0.00010192,2]
[333504078,1722217843470,-150.0,0.00010192,2]
[333504080,1722217843479,-150.0,0.00010192,2]
[333504082,1722217843488,-2700.0,0.000102,3]
[333504084,1722217843498,-384.29,0.000103,2]
[333504086,1722217843507,-3400.0,0.000103,3]
[333504087,1722217843516,-1818.57215628,0.00010353,2]
[333504089,1722217843525,-741.0763,0.00010376,2]
[333504091,1722217843534,-600.0,0.000104,3]
[333504093,1722217843543,-372.66,0.00010468,2]
[333504095,1722217843552,-10572.30482074,0.00010476,2]
[333504120,1722217843779,-49874.49192626,0.00010476,2]
[333504122,1722217843788,-2049.794574,0.00010476,2]
[333504124,1722217843797,-1358.38169,0.00010476,2]
[333504125,1722217843806,-44781.33180989,0.00010476,2]
[333504128,1722217843817,-1015.5058597,0.00010476,2]
[333504130,1722217843828,-13645.51045741,0.00010476,2]
[333504131,1722217843837,-600.0,0.000105,3]
[333504133,1722217843847,-600.0,0.000106,3]
[333504135,1722217843856,-372.94135271,0.00010607,2]
[333504137,1722217843868,-3397.93999999,0.00010607,2]
[333504184,1722217846236,-1082.04073439,0.00010607,2]
[333504185,1722217846247,-3448.8,0.00010607,2]
[333504186,1722217846258,-6925.67894862,0.00010607,2]
[333504187,1722217846269,-670.71479205,0.00010607,2]
[333504188,1722217846453,-1504.4640098,0.00010607,2]
[333504189,1722217846463,-1503.40822444,0.00010607,2]
[333504190,1722217846472,-15730.51647615,0.00010607,2]
[333504191,1722217846482,-1972.63374859,0.00010607,2]
[333504192,1722217846492,-2116.83592838,0.00010607,2]
[333504193,1722217846501,-1212.87950928,0.00010607,2]
[333504349,1722218639465,13805.0,0.00020005,120]
[333504367,1722218978422,279.23588011,0.0002,90]
[333504369,1722219032119,-361.95,8.219e-05,2]
[333504371,1722219032129,-310.33,9.361e-05,2]
[333504372,1722219032138,-349.82,9.399e-05,2]
[333504373,1722219032148,-4657.5,9.418e-05,2]
[333504374,1722219032157,-200.0,9.502e-05,2]
[333504375,1722219032167,-300.0,9.595e-05,2]
[333504376,1722219032176,-300.0,9.595e-05,2]
[333504377,1722219032185,-1852.42,9.596e-05,2]
[333504378,1722219032193,-17774.49,9.596e-05,2]
[333504379,1722219032202,-200.0,9.619e-05,2]
[333504381,1722219032212,-1000.0,9.662e-05,2]
[333504384,1722219032222,-6862.11,9.76e-05,2]
[333504385,1722219032231,-150.99,9.76e-05,2]
[333504388,1722219032240,-170.43,9.808e-05,2]
[333504389,1722219032250,-499.99,9.821e-05,2]
[333504391,1722219032259,-2638.14,9.821e-05,2]
[333504393,1722219032268,-150.99,9.821e-05,2]
[333504396,1722219032278,-150.0,9.899e-05,2]
[333504398,1722219032287,-6642.2119,9.9e-05,2]
[333504400,1722219032296,-1250.0,0.0001,2]
[333504402,1722219032305,-642.34,0.00010055,2]
[333504404,1722219032314,-425.72,0.00010192,2]
[333504406,1722219032323,-150.48,0.00010192,2]
[333504407,1722219032332,-150.0,0.00010192,2]
[333504408,1722219032342,-533.86,0.00010192,2]
[333504409,1722219032352,-150.0,0.00010192,2]
[333504410,1722219032361,-714.1,0.00010192,2]
[333504411,1722219032370,-150.0,0.00010192,2]
[333504412,1722219032379,-335.45,0.00010192,2]
[333504413,1722219032389,-150.0,0.00010192,2]
[333504414,1722219032398,-150.0,0.00010192,2]
[333504415,1722219032408,-425.72,0.00010192,2]
[333504416,1722219032417,-150.0,0.00010192,2]
[333504417,1722219032426,-150.0,0.00010192,2]
[333504418,1722219032436,-150.0,0.00010192,2]
[333504419,1722219032445,-150.0,0.00010192,2]
[333504420,1722219032454,-150.0,0.00010192,2]
[333504421,1722219032463,-150.0,0.00010192,2]
[333504422,1722219032473,-150.0,0.00010192,2]
[333504423,1722219032482,-150.0,0.00010192,2]
[333504424,1722219032491,-425.72,0.00010192,2]
[333504425,1722219032500,-150.0,0.00010192,2]
[333504426,1722219032509,-425.72,0.00010192,2]
[333504427,1722219032518,-150.0,0.00010192,2]
[333504428,1722219032526,-150.0,0.00010192,2]
[333504429,1722219032535,-150.0,0.00010192,2]
[333504430,1722219032544,-150.0,0.00010192,2]
[333504431,1722219032553,-150.0,0.00010192,2]
[333504432,1722219032563,-425.72,0.00010192,2]
[333504433,1722219032572,-150.0,0.00010192,2]
[333504434,1722219032581,-150.0,0.00010192,2]
[333504435,1722219032590,-150.0,0.00010192,2]
[333504436,1722219032599,-425.72,0.00010192,2]
[333504437,1722219032608,-425.72,0.00010192,2]
[333504438,1722219032618,-425.72,0.00010192,2]
[333504439,1722219032627,-1000.0,0.000102,2]
[333504440,1722219032636,-5071.31539655,0.00010353,2]
[333504441,1722219032646,-361.95,0.00010448,2]
[333504442,1722219032655,-221.4241,0.00010538,2]
[333504443,1722219032665,-2985.4289,0.00010538,2]
[333504444,1722219032674,-295.4431,0.00010538,2]
[333504445,1722219032683,-1091.2303,0.00010538,2]
[333504446,1722219032692,-420.0,0.00010554,2]
[333504447,1722219032701,-420.0,0.00010554,2]
[333504448,1722219032710,-3000.0,0.00010607,2]
[333504449,1722219032719,-20507.9430226,0.00010607,2]
[333504450,1722219032728,-2049.794574,0.00010607,2]
[333504451,1722219032738,-1358.38169,0.00010607,2]
[333504452,1722219032754,-59442.348127,0.00010607,2]
[333504453,1722219032763,-100000.0,0.00010638,2]
[333504454,1722219032772,-195.3621,0.00010638,2]
[333504455,1722219032783,-11847.0711,0.00010638,2]
[333504456,1722219032792,-460.0182,0.00010638,2]
[333504457,1722219032802,-60446.796747,0.00010738,2]
[333504458,1722219032811,-2049.794574,0.00010738,2]
[333504459,1722219032821,-1358.38169,0.00010738,2]
[333504460,1722219032830,-59442.348127,0.00010738,2]
[333504461,1722219032839,-2243.10024255,0.00010752,2]
[333504462,1722219032848,-197.0,0.00010761,2]
[333504463,1722219032857,-2243.10024243,0.00010763,2]